{"text_format":"1","workbook":"xlsx","n_sheets":1,"sheets":["Queries"],"not_rendered":{"charts":0,"images":0,"macros":0,"external_links":1,"defined_names":28,"comments":0,"pivot_tables":0},"unopened":[],"bounds":{"document_bytes":16777216,"sheet_cells":100000,"rows_first":2000,"rows_last":500,"rows_between":2000,"halvings":0,"cell_chars":16384,"cell_head_chars":4096},"cells_cut":0,"cells_raw":0,"read":"whole","date_system":"1900"}

{"sheet":"Queries","index":0,"n_rows":472,"n_cols":13,"rows_kept":472,"cut":false,"hidden":false,"merged":[[69,12,93,12],[69,11,93,11]]}
[]
[]
[null,null,"NOTES / QUERIES"]
[]
[null,null,"ENTRY","ITEM",null,null,null,null,"ITEM","UNIT","BILLED","QUERY / COMMENTS","Response"]
[null,null,"NO","NUMBER",null,null,null,null,"DESCRIPTION",null,"QUANTITY"]
[]
[null,null,{"$f":"MAX(Queries_PrevColRange)+1","v":1},null,null,null,null,null,"SECTION 1 : CAUSEWAY"]
[]
[null,null,null,0,null,null,null,null,"DISPOSAL OF CONTAMINATED EXCAVATED MATERIAL",0,0]
[null,null,null,0,null,null,null,null,"EARTHWORKS",0,0]
[null,null,null,"",null,null,null,null,"Overhaul ",0,0]
[null,null,null,0,null,null,null,null,"Extra over for the haulage and disposal of contaminated excavated material, in accordance with the following  ",0,0]
[null,null,null,73,null,null,null,null,"Collect a sample of the extracted sediment  ","Sum",1,"Could we collect samples of this material prior to tender closing so that we can determine what the density is in order to price the subsequent removal items below?","Refer to Environmental Reports"]
[null,null,null,74,null,null,null,null,"Send the sediment sample to a qualified laboratory for waste analysis to determine the Hazardous waste classification, Obtain and provide a Safety Data Sheet (SDS). ","Sum",1,null,"Refer to Environmental Reports"]
[null,null,null,75,null,null,null,null,"Provide the Skips suitable for the transporting of the sediment ","m3",0,"Please change this unit to \"T\"","Refer to Environmental Reports"]
[null,null,null,76,null,null,null,null,"Transport the waste sediment to an approved Hazardous waste landfill site and dispose of the sediment ","m3",0,"Please change this unit to \"T\"","Refer to Environmental Reports"]
[]
[null,null,null,null,null,null,null,null,"SECTION  2: MULTI-PURPOSE TERMINAL (MPT) AREA"]
[]
[null,null,null,0,null,null,null,null,"DISPOSAL OF CONTAMINATED EXCAVATED MATERIAL",0,0]
[null,null,null,0,null,null,null,null,"EARTHWORKS",0,0]
[null,null,null,"",null,null,null,null,"Overhaul ",0,0]
[null,null,null,0,null,null,null,null,"Extra over for the haulage and disposal of contaminated excavated material, in accordance with the following  ",0,0]
[null,null,null,110,null,null,null,null,"Collect a sample of the extracted sediment  ","Sum",1,"Could we collect samples of this material prior to tender closing so that we can determine what the density is in order to price the subsequent removal items below?","Refer to Environmental Reports"]
[null,null,null,111,null,null,null,null,"Send the sediment sample to a qualified laboratory for waste analysis to determine the Hazardous waste classification, Obtain and provide a Safety Data Sheet (SDS). ","Sum",1,null,"Refer to Environmental Reports"]
[null,null,null,112,null,null,null,null,"Provide the Skips suitable for the transporting of the sediment ","m3",11465,"Please change this unit to \"T\"","Refer to Environmental Reports"]
[null,null,null,113,null,null,null,null,"Transport the waste sediment to an approved Hazardous waste landfil site and dispose of the sediment ","m3",11465,"Please change this unit to \"T\"","Refer to Environmental Reports"]
[null,null,null,114,null,null,null,null,"Provide Transnet Port Terminals with the Safe Disposal Certificate","Sum",1,null,"Refer to Environmental Reports"]
[]
[null,null,null,null,null,null,null,null,"SECTION 3: RAIL EMBANKMENT"]
[null,null,null,0]
[null,null,null,0,null,null,null,null,"DISPOSAL OF CONTAMINATED EXCAVATED MATERIAL",0,0]
[null,null,null,0,null,null,null,null,"EARTHWORKS",0,0]
[null,null,null,"",null,null,null,null,"Overhaul ",0,0]
[null,null,null,0,null,null,null,null,"Extra over for the haulage and disposal of contaminated excavated material, in accordance with the following  ",0,0]
[null,null,null,154,null,null,null,null,"Collect a sample of the extracted sediment  ","Sum",1,"Could we collect samples of this material prior to tender closing so that we can determine what the density is in order to price the subsequent removal items below?","Refer to Environmental Reports"]
[null,null,null,155,null,null,null,null,"Send the sediment sample to a qualified laboratory for waste analysis to determine the Hazardous waste classification, Obtain and provide a Safety Data Sheet (SDS). ","Sum",1,null,"Refer to Environmental Reports"]
[null,null,null,156,null,null,null,null,"Provide the Skips suitable for the transporting of the sediment ","m3",6303,"Please change this unit to \"T\"","Refer to Environmental Reports"]
[null,null,null,157,null,null,null,null,"Transport the waste sediment to an approved Hazardous waste landfill site and dispose of the sediment ","m3",6303,"Please change this unit to \"T\"","Refer to Environmental Reports"]
[null,null,null,158,null,null,null,null,"Provide Transnet Port Terminals with the Safe Disposal Certificate","Sum",1,null,"Refer to Environmental Reports"]
[]
[null,null,null,null,null,null,null,null,"SECTION 4 : TIPPLER"]
[]
[null,null,null,0,null,null,null,null,"DISPOSAL OF CONTAMINATED EXCAVATED MATERIAL",0,0]
[null,null,null,0,null,null,null,null,"EARTHWORKS",0,0]
[null,null,null,"",null,null,null,null,"Overhaul ",0,0]
[null,null,null,0,null,null,null,null,"Extra over for the haulage and disposal of contaminated excavated material, in accordance with the following  ",0,0]
[null,null,null,154,null,null,null,null,"Collect a sample of the extracted sediment  ","Sum",1,"Could we collect samples of this material prior to tender closing so that we can determine what the density is in order to price the subsequent removal items below?","Refer to Environmental Reports"]
[null,null,null,155,null,null,null,null,"Send the sediment sample to a qualified laboratory for waste analysis to determine the Hazardous waste classification, Obtain and provide a Safety Data Sheet (SDS). ","Sum",1,null,"Refer to Environmental Reports"]
[null,null,null,156,null,null,null,null,"Provide the Skips suitable for the transporting of the sediment ","m3",11896,"Please change this unit to \"T\"","Refer to Environmental Reports"]
[null,null,null,157,null,null,null,null,"Transport the waste sediment to an approved Hazardous waste landfill site and dispose of the sediment ","m3",11896,"Please change this unit to \"T\"","Refer to Environmental Reports"]
[null,null,null,158,null,null,null,null,"Provide Transnet Port Terminals with the Safe Disposal Certificate","Sum",1,null,"Refer to Environmental Reports"]
[]
[null,null,null,null,null,null,null,null,"SECTION 5 : STOCKPILE"]
[]
[null,null,null,0,null,null,null,null,"DISPOSAL OF CONTAMINATED EXCAVATED MATERIAL",0,0]
[null,null,null,0,null,null,null,null,"EARTHWORKS",0,0]
[null,null,null,"",null,null,null,null,"Overhaul ",0,0]
[null,null,null,0,null,null,null,null,"Extra over for the haulage and disposal of contaminated excavated material, in accordance with the following  ",0,0]
[null,null,null,75,null,null,null,null,"Collect a sample of the extracted sediment  ","Sum",1,"Could we collect samples of this material prior to tender closing so that we can determine what the density is in order to price the subsequent removal items below?","Refer to Environmental Reports"]
[null,null,null,76,null,null,null,null,"Send the sediment sample to a qualified laboratory for waste analysis to determine the Hazardous waste classification, Obtain and provide a Safety Data Sheet (SDS). ","Sum",1,null,"Refer to Environmental Reports"]
[null,null,null,77,null,null,null,null,"Provide the Skips suitable for the transporting of the sediment ","m3",19206,"Please change this unit to \"T\"","Refer to Environmental Reports"]
[null,null,null,78,null,null,null,null,"Transport the waste sediment to an approved Hazardous waste landfill site and dispose of the sediment ","m3",19206,"Please change this unit to \"T\"","Refer to Environmental Reports"]
[null,null,null,79,null,null,null,null,"Provide Transnet Port Terminals with the Safe Disposal Certificate","Sum",1,null,"Refer to Environmental Reports"]
[null,null,2,null,null,null,null,null,"SECTION 3: RAIL EMBANKMENT"]
[]
[null,null,null,"",null,null,null,null,"PIPE JACKING",0,0]
[null,null,null,0,null,null,null,null,"Jacking establishment.",0,0]
[null,null,null,57,null,null,null,null,"Fixed charges for thrust and reception pits","Sum",1,"Our pipe Jacking Specialists are indicating that the the 750mm Dia pipes states in these items are too small to Jack. Please consider changing to a larger size pipe if feasable or  changing the method of installation.","Item to remain. Contractor to stipulate method of installation"]
[null,null,null,58,null,null,null,null,"Time related charges for thrust and reception pits","Sum",1]
[null,null,null,"",null,null,null,null,"Supply of Pipes to be Jacked",0,0]
[null,null,null,59,null,null,null,null,"750mm Diameter Class 100D concrete pipes","m",49]
[null,null,null,"",null,null,null,null,"Jacking of Pipes",0,0]
[null,null,null,60,null,null,null,null,"750mm Diameter Class 100D concrete pipes ","m",49]
[null,null,null,"",null,null,null,null,"Excavation for jacking.",0,0]
[null,null,null,61,null,null,null,null,"Soft excavation","m3",22]
[null,null,null,62,null,null,null,null,"Intermediate excavation","m3",2]
[null,null,null,63,null,null,null,null,"Hard rock excavation","m3",1]
[null,null,null,64,null,null,null,null,"Extra over 8.2.1 and 8.2.4 for unforeseen rock or boulders (Provisional)","Sum",1]
[]
[null,null,null,null,null,null,null,null,"SECTION 4 : TIPPLER"]
[]
[null,null,null,"",null,null,null,null,"PIPE JACKING",0,0]
[null,null,null,"",null,null,null,null,"Jacking establishment",0,0]
[null,null,null,121,null,null,null,null,"Fixed charges","Sum",1]
[null,null,null,122,null,null,null,null,"Time related charges","Sum",1]
[null,null,null,"",null,null,null,null,"Supply of Pipes to be Jacked",0,0]
[null,null,null,123,null,null,null,null,"750mm Diameter Class 100D concrete pipes ","m",94]
[null,null,null,"",null,null,null,null,"Jacking of Pipes",0,0]
[null,null,null,124,null,null,null,null,"750mm Diameter Class 100D concrete pipes ","m",94]
[null,null,null,"",null,null,null,null,"Excavation for jacking",0,0]
[null,null,null,125,null,null,null,null,"Intermediate excavation","m3",11.523071999999999]
[null,null,null,126,null,null,null,null,"Hard rock excavation","m3",5.7615359999999995]
[null,null,3,138,null,null,null,null,"Relocate optic fibre/ communication cables","m",94,"Please provide more information on this item in order to price it.\n\nWe would need to know the size of cable, the depth that it is installed at, where is it being relocated to, etc?\n\nAlternatively, please change this to a Provisional sum so that the cost can be established during execution and the contractor can be fairly compensated.","Refer to drawings for details"]
[null,null,4]
[null,null,5]
[null,null,6]
[null,null,7]
[null,null,8]
[null,null,9]
[null,null,10]
[null,null,11]
[null,null,12]
[null,null,13]
[null,null,14]
[null,null,15]
[null,null,16]
[null,null,17]
[null,null,18]
[null,null,19]
[null,null,20]
[null,null,21]
[null,null,22]
[null,null,23]
[null,null,24]
[null,null,25]
[null,null,26]
[null,null,27]
[null,null,28]
[null,null,29]
[null,null,30]
[null,null,31]
[null,null,32]
[null,null,33]
[null,null,34]
[null,null,35]
[null,null,36]
[null,null,37]
[null,null,38]
[null,null,39]
[null,null,40]
[null,null,41]
[null,null,42]
[null,null,43]
[null,null,44]
[null,null,45]
[null,null,46]
[null,null,47]
[null,null,48]
[null,null,49]
[null,null,50]
[null,null,51]
[null,null,52]
[null,null,53]
[null,null,54]
[null,null,55]
[null,null,56]
[null,null,57]
[null,null,58]
[null,null,59]
[null,null,{"$f":"MAX(Queries_PrevColRange)+1","v":60}]
[null,null,61]
[null,null,62]
[null,null,63]
[null,null,64]
[null,null,65]
[null,null,66]
[null,null,67]
[null,null,68]
[null,null,69]
[null,null,70]
[null,null,71]
[null,null,72]
[null,null,73]
[null,null,74]
[null,null,75]
[null,null,76]
[null,null,77]
[null,null,78]
[null,null,79]
[null,null,80]
[null,null,81]
[null,null,82]
[null,null,83]
[null,null,84]
[null,null,85]
[null,null,86]
[null,null,87]
[null,null,88]
[null,null,89]
[null,null,90]
[null,null,91]
[null,null,92]
[null,null,93]
[null,null,94]
[null,null,95]
[null,null,96]
[null,null,97]
[null,null,98]
[null,null,99]
[null,null,100]
[null,null,101]
[null,null,102]
[null,null,103]
[null,null,104]
[null,null,105]
[null,null,106]
[null,null,107]
[null,null,108]
[null,null,109]
[null,null,110]
[null,null,111]
[null,null,112]
[null,null,113]
[null,null,114]
[null,null,115]
[null,null,116]
[null,null,117]
[null,null,118]
[null,null,119]
[null,null,120]
[null,null,121]
[null,null,122]
[null,null,123]
[null,null,{"$f":"MAX(Queries_PrevColRange)+1","v":124}]
[null,null,125]
[null,null,126]
[null,null,127]
[null,null,128]
[null,null,129]
[null,null,130]
[null,null,131]
[null,null,132]
[null,null,133]
[null,null,134]
[null,null,135]
[null,null,136]
[null,null,137]
[null,null,138]
[null,null,139]
[null,null,140]
[null,null,141]
[null,null,142]
[null,null,143]
[null,null,144]
[null,null,145]
[null,null,146]
[null,null,147]
[null,null,148]
[null,null,149]
[null,null,150]
[null,null,151]
[null,null,152]
[null,null,153]
[null,null,154]
[null,null,155]
[null,null,156]
[null,null,157]
[null,null,158]
[null,null,159]
[null,null,160]
[null,null,161]
[null,null,162]
[null,null,163]
[null,null,164]
[null,null,165]
[null,null,166]
[null,null,167]
[null,null,168]
[null,null,169]
[null,null,170]
[null,null,171]
[null,null,172]
[null,null,173]
[null,null,174]
[null,null,175]
[null,null,176]
[null,null,177]
[null,null,178]
[null,null,179]
[null,null,180]
[null,null,181]
[null,null,182]
[null,null,183]
[null,null,184]
[null,null,185]
[null,null,186]
[null,null,187]
[null,null,{"$f":"MAX(Queries_PrevColRange)+1","v":188}]
[null,null,189]
[null,null,190]
[null,null,191]
[null,null,192]
[null,null,193]
[null,null,194]
[null,null,195]
[null,null,196]
[null,null,197]
[null,null,198]
[null,null,199]
[null,null,200]
[null,null,201]
[null,null,202]
[null,null,203]
[null,null,204]
[null,null,205]
[null,null,206]
[null,null,207]
[null,null,208]
[null,null,209]
[null,null,210]
[null,null,211]
[null,null,212]
[null,null,213]
[null,null,214]
[null,null,215]
[null,null,216]
[null,null,217]
[null,null,218]
[null,null,219]
[null,null,220]
[null,null,221]
[null,null,222]
[null,null,223]
[null,null,224]
[null,null,225]
[null,null,226]
[null,null,227]
[null,null,228]
[null,null,229]
[null,null,230]
[null,null,231]
[null,null,232]
[null,null,233]
[null,null,234]
[null,null,235]
[null,null,236]
[null,null,237]
[null,null,238]
[null,null,239]
[null,null,240]
[null,null,241]
[null,null,242]
[null,null,243]
[null,null,244]
[null,null,245]
[null,null,246]
[null,null,247]
[null,null,248]
[null,null,249]
[null,null,250]
[null,null,251]
[null,null,{"$f":"MAX(Queries_PrevColRange)+1","v":252}]
[null,null,253]
[null,null,254]
[null,null,255]
[null,null,256]
[null,null,257]
[null,null,258]
[null,null,259]
[null,null,260]
[null,null,261]
[null,null,262]
[null,null,263]
[null,null,264]
[null,null,265]
[null,null,266]
[null,null,267]
[null,null,268]
[null,null,269]
[null,null,270]
[null,null,271]
[null,null,272]
[null,null,273]
[null,null,274]
[null,null,275]
[null,null,276]
[null,null,277]
[null,null,278]
[null,null,279]
[null,null,280]
[null,null,281]
[null,null,282]
[null,null,283]
[null,null,284]
[null,null,285]
[null,null,286]
[null,null,287]
[null,null,288]
[null,null,289]
[null,null,290]
[null,null,291]
[null,null,292]
[null,null,293]
[null,null,294]
[null,null,295]
[null,null,296]
[null,null,297]
[null,null,298]
[null,null,299]
[null,null,300]
[null,null,301]
[null,null,302]
[null,null,303]
[null,null,304]
[null,null,305]
[null,null,306]
[null,null,307]
[null,null,308]
[null,null,309]
[null,null,310]
[null,null,311]
[null,null,312]
[null,null,313]
[null,null,314]
[null,null,315]
[null,null,{"$f":"MAX(Queries_PrevColRange)+1","v":316}]
[null,null,317]
[null,null,318]
[null,null,319]
[null,null,320]
[null,null,321]
[null,null,322]
[null,null,323]
[null,null,324]
[null,null,325]
[null,null,326]
[null,null,327]
[null,null,328]
[null,null,329]
[null,null,330]
[null,null,331]
[null,null,332]
[null,null,333]
[null,null,334]
[null,null,335]
[null,null,336]
[null,null,337]
[null,null,338]
[null,null,339]
[null,null,340]
[null,null,341]
[null,null,342]
[null,null,343]
[null,null,344]
[null,null,345]
[null,null,346]
[null,null,347]
[null,null,348]
[null,null,349]
[null,null,350]
[null,null,351]
[null,null,352]
[null,null,353]
[null,null,354]
[null,null,355]
[null,null,356]
[null,null,357]
[null,null,358]
[null,null,359]
[null,null,360]
[null,null,361]
[null,null,362]
[null,null,363]
[null,null,364]
[null,null,365]
[null,null,366]
[null,null,367]
[null,null,368]
[null,null,369]
[null,null,370]
[null,null,371]
[null,null,372]
[null,null,373]
[null,null,374]
[null,null,375]
[null,null,376]
[null,null,377]
[null,null,378]
[null,null,379]
[null,null,380]